[Event "DPEM German Cup 2022"]
[Site "Magdeburg"]
[Date "2022.08.20"]
[Round "5.5"]
[White "Kist, Eike Andreas"]
[Black "Foerster, Erik"]
[Result "0-1"]
[ECO "B22"]
[WhiteElo "1697"]
[BlackElo "2109"]
[Annotator "TA"]
[PlyCount "149"]
[EventDate "2022.08.10"]
[EventType "k.o."]
[EventCountry "GER"]
[SourceTitle "playchess.com"]
[Source "ChessBase"]
[SourceQuality "1"]
[TimeControl "40/5400+30:900+30"]

{[%evp 19,149,0,0,-13,0,-16,0,-27,-11,-64,-72,-120,-116,-122,-56,-67,-43,-77,-76,-109,-58,-116,-71,-75,-63,-412,-358,-373,-193,-179,-130,-133,-12,-2,-10,-10,0,0,0,0,0,0,0,0,0,0,79,12,14,0,0,0,0,0,0,-6,-4,-6,-4,-7,-6,-128,-140,-119,-105,-145,-135,-117,-110,-176,-110,-262,-262,-363,-363,-315,-307,-269,-230,-250,-64,-64,0,0,0,0,0,0,0,0,0,0,0,0,0,0,0,0,0,0,0,0,0,0,0,0,0,-8,-8,-1120,-680,-435,0,0,0,0,0,0,0,-18,-45,-1295,-1156,-10772,-7140,-7691,-6198,-12530,-12530,-12355,-12355,-4614]} 1. e4 {[%emt 0:00:01]} e6 {[%emt 0:00:02]} 2. d4 {[%emt 0:00:11]} d5 {[%emt 0:00:02]} 3. Nd2 {[%emt 0:00:08]} c5 {[%emt 0:00:08]} 4. Ngf3 {[%emt 0:00:17]} Nc6 {[%emt 0:00:12]} 5. exd5 {[%emt 0:01:23]} exd5 {[%emt 0:00:07]} 6. Be2 {[%emt 0:02:26]} Nf6 {[%emt 0:00:55]} 7. O-O {[%emt 0:00:48]} Be7 {[%emt 0:00:30]} 8. dxc5 {[%emt 0:00:11]} Bxc5 {[%emt 0:00:07]} 9. Nb3 {[%emt 0:01:22]} Bb6 {[%emt 0:00:02]} 10. c3 {[%emt 0:00:45]} O-O {[%emt 0:00:18]} 11. Bf4 {[%emt 0:10:04] B22: Sicilian: 2 c3.} Ne4 {[%emt 0:04:42]} 12. Nfd4 {[%emt 0:04:10]} Qf6 {[%emt 0:01:27] [#]} 13. Bg3 $146 {[%emt 0:01:49] The position is equal.} ({Predecessor:} 13. Be3 Re8 14. Bb5 Bc7 15. Qf3 Qg6 16. h3 Ne5 17. Qe2 Bxh3 18. f4 Ng3 19. Qf2 Nxf1 20. Bxe8 Nxe3 21. fxe5 Rxe8 22. g3 Ng4 {0-1 (22) Sebesta,J (1806)-Kubos,R (2157) Bohumin 2019}) 13... g6 {[%emt 0:02:11]} 14. Qd3 {[%emt 0:13:11]} (14. a4 $11) 14... h5 $15 {[%emt 0:05:35] Strongly threatening ...h4.} 15. h4 {[%emt 0:02:29]} (15. Qf3 $142) 15... Re8 $17 {[%emt 0:05:07]} 16. Bf3 {[%emt 0:02:47]} Ne5 {[%emt 0:07:58] Black is more active.} (16... Nxg3 $17 17. fxg3 Qd6) 17. Bxe5 $15 {[%emt 0:01:57]} Qxe5 {[%emt 0:00:18]} 18. Bxe4 {[%emt 0:06:59]} dxe4 {[%emt 0:00:18]} 19. Qb5 {[%emt 0:05:41]} Qe7 {[%emt 0:04:22]} ({Black should try} 19... Qxb5 $17 20. Nxb5 e3) 20. g3 {[%emt 0:04:46]} (20. Rfe1 $15) 20... Bg4 {[%emt 0:03:53]} 21. Rfe1 {[%emt 0:01:00]} Qf6 {[%emt 0:04:24]} 22. Nc5 $2 {[%emt 0:04:01][%mdl 8192]} ({Better is} 22. Qd5 $15) 22... a6 {[%emt 0:09:10]} 23. Nd7 {[%emt 0:01:33]} Bxd7 {[%emt 0:01:46]} (23... axb5 24. Nxf6+ Kg7 25. Nxe8+ Rxe8 26. Nxb5 $18) (23... Qxf2+ $2 24. Kxf2 Bxd4+ 25. cxd4 $18) (23... Qxd4 $142 24. cxd4 axb5 25. Nxb6 Rad8) 24. Qxd7 $19 {[%emt 0:00:09]} Re7 {[%emt 0:00:14]} (24... Rad8 $19 25. Qxb7 Re7 26. Qxa6 Bxd4 27. Qxf6 Bxf6) 25. Qa4 {[%emt 0:03:35]} Bxd4 {[%emt 0:00:04]} (25... e3 $17 26. Qc2 (26. Rxe3 $2 Rxe3 27. fxe3 Qe5 $19) (26. fxe3 $2 Qe5 $19) 26... Bxd4 27. cxd4 Qxd4 28. fxe3 Rxe3 29. Rxe3 Qxe3+ 30. Qf2 Qe6) 26. Qxd4 $11 {[%emt 0:02:15]} Qxd4 {[%emt 0:00:10]} 27. cxd4 $17 {[%emt 0:00:07][%mdl 4096] Endgame KRR-KRR} Rd8 {[%emt 0:00:25]} 28. Rad1 {[%emt 0:00:37]} f5 {[%emt 0:00:15]} 29. f3 {[%emt 0:01:22]} Kf7 {[%emt 0:05:31]} 30. fxe4 {[%emt 0:01:01]} Rxe4 {[%emt 0:00:02]} 31. Rxe4 {[%emt 0:00:11]} fxe4 $11 {[%emt 0:00:02] KR-KR} 32. Kf2 {[%emt 0:04:11]} Rc8 {[%emt 0:01:48] [#]} (32... Ke6 $11) 33. Ke3 {[%emt 0:07:29]} (33. Re1 $1 $16) 33... Ke6 $1 {[%emt 0:00:19]} ({Don't play} 33... Rc2 34. Rd2 (34. Kxe4 Rxb2 35. Rf1+ Ke6 $11) 34... Rc6 35. Rf2+ (35. Kxe4 Re6+ 36. Kd5 Ke7 $16) 35... Ke7 36. Kxe4 $16) 34. Rd2 {[%emt 0:06:56]} Kd5 {[%emt 0:01:08] And now ...Rf8 would win.} 35. Rf2 {[%emt 0:00:08] Inhibits Rf8.} Rc1 {[%emt 0:00:16]} 36. Rf6 {[%emt 0:00:54]} Re1+ {[%emt 0:00:34]} 37. Kd2 {[%emt 0:00:47]} Rg1 {[%emt 0:00:46]} 38. Rxg6 {[%emt 0:00:31]} Kxd4 {[%emt 0:00:41]} 39. Rd6+ {[%emt 0:00:46]} Kc5 {[%emt 0:04:33]} 40. Re6 {[%emt 0:04:40]} (40. Rg6 $1 $11 {remains equal.}) 40... Rg2+ $17 {[%emt 0:01:43]} ({Of course not} 40... Rxg3 $6 41. Rxe4 Kd6 42. Rd4+ Ke5 43. Rb4 $11) 41. Ke3 {[%emt 0:18:09]} Rxg3+ {[%emt 0:16:06]} 42. Kxe4 {[%emt 0:00:12]} Rg4+ {[%emt 0:00:17]} 43. Kd3 {[%emt 0:00:21]} Rxh4 {[%emt 0:00:12]} 44. Rh6 {[%emt 0:02:22]} (44. Re7 $17) 44... a5 {[%emt 0:05:01]} (44... Rh3+ $19 45. Kd2 h4) 45. b3 $2 {[%emt 0:02:30]} (45. a4 $17 {was worth a try.}) 45... b5 $19 {[%emt 0:03:20]} 46. Kc3 {[%emt 0:00:00]} Rh3+ {[%emt 0:00:00]} 47. Kb2 {[%emt 0:00:00]} Kb4 {[%emt 0:00:00]} 48. a3+ {[%emt 0:00:00]} Kc5 {[%emt 0:00:00] Hoping for ...Rh2+.} 49. Rh8 {[%emt 0:00:00]} Rh2+ $2 {[%emt 0:00:00]} (49... h4 $19 {aiming for ...Rh2+.} 50. Kc2 a4 51. bxa4 bxa4 52. Rc8+ Kd5 53. Rd8+ Ke4) 50. Kc3 $15 {[%emt 0:00:00]} b4+ {[%emt 0:00:00]} (50... a4 $1 $15 51. Rc8+ Kd5 52. bxa4 bxa4) 51. axb4+ $11 {[%emt 0:00:00]} axb4+ {[%emt 0:00:00]} 52. Kd3 {[%emt 0:00:00]} Rh3+ {[%emt 0:00:00]} 53. Kc2 $1 {[%emt 0:00:00]} Kd4 {[%emt 0:00:00]} 54. Rd8+ $1 {[%emt 0:00:00]} Ke5 {[%emt 0:00:00]} 55. Rb8 $1 {[%emt 0:00:00]} Rh4 {[%emt 0:00:00]} 56. Kd3 {[%emt 0:00:00]} Rd4+ {[%emt 0:00:28]} 57. Ke3 {[%emt 0:00:00]} Re4+ {[%emt 0:00:46]} 58. Kd3 {[%emt 0:00:00] Re8+ would kill now.} Rh4 {[%emt 0:00:43]} 59. Rb7 {[%emt 0:00:00]} Kd5 {[%emt 0:00:20]} 60. Rb8 {[%emt 0:00:00]} Kc5 {[%emt 0:00:15]} ({Much worse is} 60... Rh3+ $6 61. Kc2 $17) 61. Rh8 {[%emt 0:01:15]} Rd4+ {[%emt 0:00:55]} 62. Ke3 {[%emt 0:01:07] Intending Rc8+ and mate.} Rd5 {[%emt 0:00:13]} (62... Rh4 $5 {[%cal Rh4h3]}) 63. Ke4 {[%emt 0:00:38] White wants to mate with Rc8+.} Rg5 {[%emt 0:00:31]} 64. Rh6 $2 {[%emt 0:01:46][%mdl 8192] [#]} (64. Rc8+ $11 Kd6 65. Rd8+ Ke6 66. Rh8) 64... Rg4+ $1 $19 {[%emt 0:01:24]} 65. Kd3 {[%emt 0:00:50]} h4 $2 {[%emt 0:00:22]} (65... Rg3+ $19 66. Kd2 Rh3) 66. Rh5+ $1 $11 {[%emt 0:00:33]} Kd6 {[%emt 0:00:56]} 67. Ke3 {[%emt 0:01:28]} Rg3+ {[%emt 0:03:10]} 68. Kd4 {[%emt 0:00:31]} Rg4+ {[%emt 0:02:14]} 69. Ke3 {[%emt 0:00:18]} Ke6 {[%emt 0:00:02]} 70. Kf3 $2 {[%emt 0:00:43][%mdl 8192]} (70. Ke2 $15) 70... Rg3+ $19 {[%emt 0:00:34] Black is clearly winning.} 71. Ke4 {[%emt 0:02:49]} h3 {[%emt 0:00:49]} 72. Kd4 {[%emt 0:00:51]} Rc3 {[%emt 0:00:03]} 73. Rb5 {[%emt 0:01:18]} Rxb3 {[%emt 0:00:20] ( -> ...Rg3)} 74. Kc4 {[%emt 0:00:37]} Rb2 {[%emt 0:00:03] White must now prevent ...Kf6.} 75. Kd4 {[%emt 0:03:05] Weighted Error Value: White=0.33/Black=0.29 (precise)} 0-1

[Event "DPEM German Cup 2022"]
[Site "Magdeburg"]
[Date "2022.08.20"]
[Round "5.6"]
[White "Bosselmann, Tom Linus"]
[Black "Puerckhauer, Soeren"]
[Result "0-1"]
[ECO "A52"]
[WhiteElo "2041"]
[BlackElo "2158"]
[Annotator "TA"]
[PlyCount "90"]
[EventDate "2022.08.10"]
[EventType "k.o."]
[EventCountry "GER"]
[SourceTitle "playchess.com"]
[Source "ChessBase"]
[SourceQuality "1"]
[TimeControl "40/5400+30:900+30"]

{[%evp 14,90,22,14,37,39,43,37,39,34,38,27,43,25,37,41,28,40,37,10,54,0,0,-14,0,-7,0,0,12,14,37,38,51,34,26,39,39,43,72,54,31,6,10,5,30,0,0,-145,-110,-105,-98,-149,-163,-172,-115,-239,-258,-225,-217,-244,-251,-285,-283,-253,-278,-334,-314,-408,-395,-519,-510,-1223,-1212,-1216,-1088,-1062,-1022,-965,-881]} 1. d4 {[%emt 0:00:03]} Nf6 {[%emt 0:00:05]} 2. c4 {[%emt 0:00:05]} e5 {[%emt 0:00:03]} 3. dxe5 {[%emt 0:02:23]} Ng4 {[%emt 0:00:06]} 4. e3 {[%emt 0:00:08]} Nxe5 {[%emt 0:00:37]} 5. Nh3 {[%emt 0:00:05]} Bb4+ {[%emt 0:01:03]} 6. Bd2 {[%emt 0:01:23]} Bxd2+ {[%emt 0:00:18]} 7. Qxd2 {[%emt 0:01:17]} d6 {[%emt 0:01:57]} 8. Nf4 {[%emt 0:00:35]} Be6 {[%emt 0:08:48] A52: Budapest Gambit.} 9. Nxe6 {[%emt 0:07:44]} fxe6 {[%emt 0:00:03]} 10. Nc3 {[%emt 0:00:23] [#]} Nbd7 $146 {[%emt 0:05:44] White is slightly better.} ({Predecessor:} 10... Nbc6 11. O-O-O Qe7 12. f4 Nd7 13. Be2 Nb6 14. Kb1 O-O-O 15. g3 d5 16. cxd5 exd5 17. Rhe1 Qf6 18. Bf3 d4 19. Ne4 dxe3 20. Qxe3 Rxd1+ 21. Rxd1 Qxb2+ 22. Kxb2 Nc4+ {½-½ (22) Semcesen,D (2473)-Olsen,A (2056) Odense 2013}) 11. O-O-O {[%emt 0:04:18]} Nc5 {[%emt 0:04:23]} 12. f4 {[%emt 0:05:15]} Nc6 {[%emt 0:00:05]} 13. Be2 {[%emt 0:02:29]} Qd7 {[%emt 0:01:02]} 14. Bh5+ {[%emt 0:04:52]} g6 {[%emt 0:00:32]} 15. Bf3 {[%emt 0:00:19]} O-O-O {[%emt 0:12:48]} 16. Nb5 {[%emt 0:02:43]} Kb8 {[%emt 0:08:18]} 17. b4 {[%emt 0:20:00]} (17. Nd4 $1 $14) 17... Na4 $11 {[%emt 0:11:20]} 18. Qc2 {[%emt 0:06:58]} Nb6 {[%emt 0:00:15] Pair of Knights!} 19. Qb3 {[%emt 0:01:08]} d5 {[%emt 0:02:14]} 20. Na3 {[%emt 0:03:25]} (20. c5 $5 {[%cal Rc5b6]} Nc4 21. Na3 $11) 20... Qg7 {[%emt 0:07:01]} 21. c5 {[%emt 0:02:32]} Nc8 {[%emt 0:03:33]} (21... Nd7 $5 {[%cal Ra7a5]}) 22. Nc2 {[%emt 0:01:10]} N8e7 {[%emt 0:02:31]} 23. Qa3 {[%emt 0:10:09]} a6 {[%emt 0:01:22]} 24. Qb2 {[%emt 0:07:39]} Qxb2+ {[%emt 0:01:17]} 25. Kxb2 {[%emt 0:00:02]} h6 {[%emt 0:03:11][%cal Bh7h6,Bh6g5,Bg5g4][%mdl 32]} 26. g3 {[%emt 0:06:34]} e5 {[%emt 0:02:07]} 27. Bg4 {[%emt 0:02:14]} (27. a4 {with more complications.} g5 28. b5 Na5 29. fxe5 Nc4+ 30. Kc3) 27... d4 {[%emt 0:02:01]} 28. exd4 {[%emt 0:00:28]} exd4 {[%emt 0:00:08]} 29. Rd3 {[%emt 0:00:33]} g5 {[%emt 0:03:22]} 30. fxg5 {[%emt 0:01:17]} (30. Rhd1 $11) 30... hxg5 {[%emt 0:00:02]} 31. Be2 {[%emt 0:01:30] [#]} Ng6 $1 {[%emt 0:01:35] White must now prevent ...Nge5.} 32. Rb3 {[%emt 0:00:48]} (32. Rd2 $142) 32... Nge5 $17 {[%emt 0:00:43] Hoping for ...d3.} 33. Ne1 {[%emt 0:00:02] Prevents d3.} Rdf8 {[%emt 0:01:53]} ({Black should play} 33... a5 $19 {...Rhf8 is the strong threat.} 34. bxa5 Nxa5) 34. Nf3 {[%emt 0:01:04] Loses the game.} (34. Nd3 $17) 34... g4 $19 {[%emt 0:00:29]} 35. Nxe5 {[%emt 0:01:39]} Nxe5 {[%emt 0:00:02]} 36. Kb1 {[%emt 0:01:11]} Rf2 {[%emt 0:00:14][%csl LRe2,LRh2]} 37. Bd3 {[%emt 0:01:34]} Rhxh2 {[%emt 0:00:53]} ({Avoid the trap} 37... Rfxh2 $2 38. Rxh2 Rxh2 39. Be4 $19) 38. Rxh2 {[%emt 0:00:02]} Rxh2 {[%emt 0:00:14][%mdl 4096] Endgame KRB-KRN} 39. Bf5 {[%emt 0:00:11]} Rf2 {[%emt 0:00:34]} 40. Be6 {[%emt 0:00:33]} d3 {[%emt 0:01:23] [#] Threatens to win with ...Rf1+.} 41. Rc3 {[%emt 0:16:18]} Rf3 {[%emt 0:18:23] Strongly threatening ...d2. Black is clearly winning.} 42. Kc1 {[%emt 0:01:24]} (42. Rc1 $142 Rxg3 43. Re1) 42... Rxg3 {[%emt 0:01:43]} 43. Bd5 {[%emt 0:00:00]} Re3 {[%emt 0:00:00]} 44. Kd2 {[%emt 0:00:00]} Re2+ {[%emt 0:00:00]} 45. Kd1 {[%emt 0:00:00]} g3 {[%emt 0:00:00] Weighted Error Value: White=0.38/Black=0.12 (very precise)} 0-1

[Event "DPEM German Cup 2022"]
[Site "Magdeburg"]
[Date "2022.08.20"]
[Round "5.7"]
[White "Heinrich, Julius Tobias"]
[Black "Fuss, Klaus"]
[Result "1-0"]
[ECO "B22"]
[WhiteElo "2074"]
[BlackElo "2044"]
[Annotator "NA RC"]
[PlyCount "61"]
[EventDate "2022.08.10"]
[EventType "k.o."]
[EventCountry "GER"]
[SourceTitle "playchess.com"]
[Source "ChessBase"]
[SourceQuality "1"]
[TimeControl "40/5400+30:900+30"]

1. e4 {[%emt 0:00:03]} c5 {[%emt 0:00:06]} 2. c3 {[%emt 0:00:03]} Nf6 {[%emt 0:00:21]} 3. e5 {[%emt 0:00:05]} Nd5 {[%emt 0:00:07]} 4. d4 {[%emt 0:00:05]} cxd4 {[%emt 0:00:25]} 5. cxd4 {[%emt 0:00:04]} e6 {[%emt 0:01:19]} 6. Nc3 {[%emt 0:00:07]} Nxc3 {[%emt 0:00:44]} 7. bxc3 {[%emt 0:00:11]} d6 {[%emt 0:00:37]} 8. Nf3 {[%emt 0:01:16]} Nd7 {[%emt 0:02:19]} 9. exd6 {[%emt 0:00:34]} Bxd6 {[%emt 0:01:07]} 10. Bd3 {[%emt 0:00:11]} Qc7 {[%emt 0:04:30]} 11. Qc2 {[%emt 0:01:58]} b6 {[%emt 0:04:45]} 12. Ng5 {[%emt 0:11:03]} Nf6 {[%emt 0:06:24]} 13. f4 {[%emt 0:09:00]} Bxf4 {[%emt 0:25:10]} 14. Bb5+ {[%emt 0:18:34]} Ke7 {[%emt 0:08:07]} 15. O-O {[%emt 0:02:21]} Bxh2+ {[%emt 0:03:09]} 16. Kh1 {[%emt 0:00:04]} Bb7 {[%emt 0:00:38]} 17. d5 {[%emt 0:05:29]} Bxd5 {[%emt 0:16:37]} 18. c4 {[%emt 0:13:07]} h6 {[%emt 0:03:09]} 19. Ba3+ {[%emt 0:01:27]} Bd6 {[%emt 0:01:17]} 20. Nxf7 {[%emt 0:05:05]} Kxf7 {[%emt 0:04:50]} 21. Bxd6 {[%emt 0:00:32]} Qxd6 {[%emt 0:00:01]} 22. cxd5 {[%emt 0:00:24]} exd5 {[%emt 0:01:09]} 23. Rad1 {[%emt 0:04:26]} Rhc8 {[%emt 0:04:02]} 24. Qh7 {[%emt 0:04:58]} Qg3 {[%emt 0:02:18]} 25. Rxd5 {[%emt 0:09:23]} Qh4+ {[%emt 0:01:59]} 26. Kg1 {[%emt 0:01:44]} Rc5 {[%emt 0:03:27]} 27. Rd7+ {[%emt 0:02:33]} Ke6 {[%emt 0:00:05]} 28. Qxg7 {[%emt 0:01:01]} Nxd7 {[%emt 0:02:32]} 29. Qxd7+ {[%emt 0:00:13]} Ke5 {[%emt 0:00:23]} 30. Rf5+ {[%emt 0:00:08]} Ke4 {[%emt 0:00:23]} 31. Qd3# {[%emt 0:00:09]} 1-0

[Event "DPEM German Cup 2022"]
[Site "Magdeburg"]
[Date "2022.08.20"]
[Round "5.8"]
[White "Schroeder, Christoph"]
[Black "Brunke, Pascal"]
[Result "1/2-1/2"]
[ECO "C11"]
[WhiteElo "2141"]
[BlackElo "2022"]
[Annotator "TA"]
[PlyCount "80"]
[EventDate "2022.08.10"]
[EventType "k.o."]
[EventCountry "GER"]
[SourceTitle "playchess.com"]
[Source "ChessBase"]
[SourceQuality "1"]
[TimeControl "40/5400+30:900+30"]

{[%evp 10,80,-13,-45,-42,-41,-54,-86,-41,-58,-29,-37,-31,0,0,-27,-26,-32,0,-17,11,15,15,0,0,0,-13,-41,-37,-44,-48,-45,-29,-52,13,12,13,12,50,18,18,18,14,6,4,12,10,0,25,0,0,0,0,0,0,0,0,0,0,0,0,0,0,0,0,0,0,0,0,0,0,0,0]} 1. e4 {[%emt 0:00:05]} e6 {[%emt 0:00:06]} 2. d4 {[%emt 0:00:11]} d5 {[%emt 0:00:05]} 3. Nc3 {[%emt 0:00:05]} Nf6 {[%emt 0:00:04]} 4. e5 {[%emt 0:00:31]} Nfd7 {[%emt 0:00:04]} 5. Nf3 {[%emt 0:00:15]} c5 {[%emt 0:00:12]} 6. Bg5 {[%emt 0:00:48]} Qb6 {[%emt 0:00:59] C11: French: Classical System: 4 e5 and 4 Bg5 dxe4.} 7. dxc5 {[%emt 0:00:22]} Bxc5 {[%emt 0:00:14]} 8. Qd2 {[%emt 0:00:11]} (8. Bb5 Bxf2+ 9. Kf1 a6 $17) 8... Nc6 {[%emt 0:01:00][%cal Oc5f2] White must now prevent ...Bxf2+! Black is better.} (8... Qxb2 9. Rb1 Qa3 10. Nb5 Qxa2 11. Nc7+ Kf8 12. Rc1 $16) 9. O-O-O {[%emt 0:06:21]} Bxf2 {[%emt 0:10:49]} 10. Na4 {[%emt 0:01:37]} Qb4 {[%emt 0:01:02]} 11. Qxf2 {[%emt 0:00:18] [#] And now Nc3 would win.} Qxa4 {[%emt 0:00:04]} 12. Kb1 {[%emt 0:06:51]} O-O {[%emt 0:18:20]} (12... Ncxe5 $2 13. Nxe5 O-O 14. Nxd7 Qxd7 15. Bd3 $18) ({But not} 12... Nb4 13. a3 Nc6 14. Qg3 $14) 13. b3 {[%emt 0:04:10] [#]} Qa5 $146 {[%emt 0:04:05]} ({Predecessor:} 13... Qb4) 14. Qg3 {[%emt 0:06:15]} Ndxe5 {[%emt 0:07:00]} 15. Nxe5 {[%emt 0:05:31]} Nxe5 {[%emt 0:00:16]} 16. Qxe5 {[%emt 0:15:13]} f6 {[%emt 0:00:26]} 17. Bxf6 {[%emt 0:00:15]} gxf6 {[%emt 0:04:09]} 18. Qh5 {[%emt 0:00:34]} Qc7 {[%emt 0:02:09]} ({Don't take} 18... e5 {[#]} 19. Rxd5 $1 Qc7 20. Bd3 $14) 19. c4 {[%emt 0:07:08]} dxc4 {[%emt 0:01:21]} 20. Bxc4 {[%emt 0:00:10]} Kh8 {[%emt 0:01:17]} 21. Rd3 {[%emt 0:05:48]} b5 {[%emt 0:11:57]} (21... e5 $15) 22. Bxb5 $11 {[%emt 0:03:18]} Bb7 {[%emt 0:00:50] aiming for ...Be4.} 23. Rc1 {[%emt 0:03:32]} Qf4 {[%emt 0:04:03] Hoping for ...Be4.} 24. Rd7 {[%emt 0:04:57][%csl Gd7][%cal Rh5h7]} (24. g3 $5 {[%cal Rg3f4]} Qe4 25. Kb2 $14) 24... Be4+ {[%emt 0:00:10]} 25. Bd3 {[%emt 0:00:24]} Bxd3+ {[%emt 0:00:57]} 26. Rxd3 {[%emt 0:00:04]} Rac8 {[%emt 0:05:24][%csl Gc8][%cal Rf4c1] Inhibits Rc4.} 27. Rcd1 {[%emt 0:04:38] Active counter play!} Rc7 {[%emt 0:03:25]} 28. Qf3 {[%emt 0:08:23]} Qe5 {[%emt 0:03:59]} 29. Rd8 {[%emt 0:06:49]} Rxd8 {[%emt 0:01:06] The position is equal.} 30. Rxd8+ {[%emt 0:00:02][%mdl 4096] Endgame KQR-KQR} Kg7 {[%emt 0:00:05]} 31. Qg4+ {[%emt 0:01:34]} Qg5 {[%emt 0:00:06]} 32. Qxg5+ {[%emt 0:00:19]} fxg5 {[%emt 0:00:02] KR-KR} 33. Rd2 {[%emt 0:02:12]} e5 {[%emt 0:00:58]} 34. Rc2 {[%emt 0:00:14]} Rd7 {[%emt 0:02:43]} 35. Kc1 {[%emt 0:00:14]} Kf6 {[%emt 0:00:12]} 36. Rd2 {[%emt 0:00:15][%cal Bc2d2,Bd2d8,Bd8e8][%mdl 32]} Rc7+ {[%emt 0:00:36]} 37. Kd1 {[%emt 0:00:08]} Ke6 {[%emt 0:01:00]} 38. Rd8 {[%emt 0:04:13]} e4 {[%emt 0:01:30]} 39. Kd2 {[%emt 0:01:18]} Ke5 {[%emt 0:00:19]} 40. Re8+ {[%emt 0:01:50]} Kd4 {[%emt 0:01:36] Weighted Error Value: White=0.07 (flawless) /Black=0.11 (very precise)} 1/2-1/2